bitfinex-derivatives/quotes_BTCF0:USTF0_20241210
["timestamp","ask_amount","ask_price","bid_price","bid_amount"]
[1733850687138,0.66086,95235.0,95171.0,0.01576]
[1733850687139,6e-05,95199.0,95178.0,0.052513]
[1733850687339,0.3608,95196.0,95186.0,0.3608]
[1733850687534,0.3608,95196.0,95172.0,0.02095281]
[1733850687845,0.26896965,95210.0,95191.0,8.881e-05]
[1733850687846,0.052505,95194.0,95191.0,8.881e-05]
[1733850688031,0.3608,95208.0,95191.0,8.881e-05]
[1733850688032,0.3608,95192.0,95191.0,8.881e-05]
[1733850688540,0.413306,95192.0,95191.0,8.881e-05]
[1733850688740,0.3608,95192.0,95191.0,8.881e-05]
[1733850689936,0.05258151,95193.0,95191.0,0.00408881]
[1733850690237,0.3618,95192.0,95191.0,0.00408881]
[1733850690828,0.6618,95192.0,95147.0,0.3608]
[1733850691040,0.052523,95161.0,95150.0,0.052529]
[1733850691236,6e-05,95159.0,95150.0,0.052529]
[1733850691437,0.3608,95155.0,95150.0,0.052529]
[1733850691644,0.052526,95156.0,95150.0,0.052529]
[1733850691847,0.052526,95156.0,95151.0,0.00012001]
[1733850692145,0.052527,95155.0,95151.0,0.00012001]
[1733850692843,0.052525,95158.0,95151.0,0.00012001]
[1733850693042,6e-05,95159.0,95151.0,0.00012001]
[1733850693340,0.052525,95158.0,95157.0,0.00012]
[1733850693548,6e-05,95159.0,95157.0,0.00012]
[1733850693936,6e-05,95159.0,95158.0,0.00012]
[1733850694944,0.36086,95159.0,95158.0,0.00012]
[1733850695144,0.36086,95159.0,95104.0,0.3608]
[1733850695145,0.66086,95159.0,95104.0,0.3608]
[1733850695346,0.052549,95114.0,95105.0,0.00525734]
[1733850695545,0.26896965,95120.0,95105.0,0.00525734]
[1733850695847,0.3608,95106.0,95105.0,0.00525734]
[1733850696252,0.3608,95106.0,95105.0,0.00536495]
[1733850697038,0.6608,95106.0,95079.0,0.02144245]
[1733850697245,0.052568,95080.0,95079.0,0.02144245]
[1733850697638,0.052568,95080.0,95066.0,0.3608]
[1733850697639,0.052568,95080.0,95066.0,0.37714814]
[1733850697837,0.052568,95080.0,95067.0,0.00525944]
[1733850698047,0.3608,95087.0,95068.0,0.00011256]
[1733850698048,0.052569,95078.0,95068.0,0.00011256]
[1733850698351,0.052567,95081.0,95077.0,0.3608]
[1733850699140,0.001,95080.0,95077.0,0.3608]
[1733850700041,0.26896965,95089.0,95077.0,0.3608]
[1733850700352,0.26896965,95089.0,95077.0,0.3658]
[1733850700353,0.001,95081.0,95077.0,0.3658]
[1733850701046,0.001,95081.0,95077.0,0.38168639]
[1733850701351,0.3608,95123.0,95079.0,0.052568]
[1733850701543,0.02151419,95135.0,95106.0,0.3608]
[1733850701854,0.26896965,95160.0,95106.0,0.3608]
[1733850702059,0.26896965,95150.0,95123.0,0.3608]
[1733850702241,0.05411067,95145.0,95144.0,0.00012]
[1733850702556,0.00157867,95145.0,95144.0,0.00012]
[1733850702755,0.00157867,95145.0,95144.0,0.00022072]
[1733850703455,0.00157867,95145.0,95111.0,0.3608]
[1733850703456,0.052533,95143.0,95111.0,0.3608]
[1733850703757,0.05411067,95145.0,95111.0,0.3608]
[1733850703758,0.26896965,95140.0,95132.0,0.3608]
[1733850704052,0.26896965,95140.0,95104.0,0.3608]
[1733850704053,0.052553,95107.0,95104.0,0.3608]
[1733850704247,0.052559,95096.0,95092.0,0.3608]
[1733850704444,0.26896965,95102.0,95080.0,0.3608]
[1733850704642,0.05257,95076.0,95052.0,0.052583]
[1733850704854,0.05257,95076.0,95024.0,0.052599]
[1733850704855,0.052576,95066.0,95046.0,0.052586]
[1733850705157,0.3608,95065.0,95047.0,0.02624]
[1733850705346,0.052582,95054.0,95047.0,0.02624]
[1733850705545,0.00012035,95061.0,95048.0,0.00010424]
[1733850705754,0.3608,95054.0,95048.0,0.00010424]
[1733850706049,0.00012035,95061.0,95049.0,0.052585]
[1733850706653,0.00012035,95061.0,95060.0,0.00012]
[1733850707147,0.41349835,95061.0,95060.0,0.00012]
[1733850707343,0.36092035,95061.0,95060.0,0.00012]
[1733850707546,0.36092035,95061.0,95048.0,0.01668702]
[1733850707746,0.3608,95049.0,95048.0,0.01668702]
[1733850708042,0.413445,95049.0,95048.0,0.01668702]
[1733850708844,0.36086,95049.0,95048.0,0.01668702]
[1733850709455,0.36086,95049.0,95048.0,0.02068702]
[1733850710152,0.36086,95049.0,95048.0,0.02171702]
[1733850710452,0.413445,95049.0,95048.0,0.02171702]
[1733850711353,0.414445,95049.0,95048.0,0.02471702]
[1733850711546,0.414445,95049.0,95048.0,0.02571702]
[1733850711951,0.413445,95049.0,95048.0,0.02271702]
[1733850712164,0.36086,95049.0,95048.0,0.02271702]
[1733850713252,0.36086,95049.0,95048.0,0.02171702]
[1733850713453,0.36086,95049.0,95048.0,0.02271702]
[1733850714755,0.36086,95049.0,95048.0,0.00613424]
[1733850715053,0.36086,95049.0,95048.0,0.0210367]
[1733850719260,0.36086,95049.0,95048.0,0.0200367]
[1733850719454,0.36086,95049.0,95048.0,0.0190367]
[1733850719755,0.36086,95049.0,95048.0,0.0170367]
[1733850719963,0.36086,95049.0,95048.0,0.0180367]
[1733850720259,0.36086,95049.0,95048.0,0.0264467]
[1733850720756,0.36086,95049.0,95048.0,0.0254467]
[1733850722658,6e-05,95049.0,95048.0,0.0254467]
[1733850722861,0.36092035,95061.0,95053.0,0.052583]
[1733850723064,0.36092035,95061.0,95054.0,0.052582]
[1733850723262,0.00012035,95061.0,95060.0,0.00012]
[1733850723967,0.3608,95084.0,95060.0,0.00012]
[1733850724158,0.55721869,95113.0,95060.0,0.00012]
[1733850724159,0.052578,95062.0,95060.0,0.00012]
[1733850724360,0.413378,95063.0,95055.0,0.35344]
[1733850724566,0.3608,95056.0,95055.0,0.35344]
[1733850724761,0.42293536,95056.0,95055.0,0.35437]
[1733850725060,0.42293536,95056.0,95055.0,0.36912637]
[1733850725263,0.42294495,95056.0,95055.0,0.36912637]
[1733850725759,0.42294495,95056.0,95055.0,0.37812637]
[1733850725965,0.37036395,95056.0,95055.0,0.37812637]
[1733850726468,0.37047317,95056.0,95055.0,0.37412637]
[1733850726774,0.37147317,95056.0,95055.0,0.37412637]
[1733850726954,0.67147317,95056.0,95054.0,0.0650869]
[1733850727155,0.052585,95049.0,95048.0,0.00851424]
[1733850727351,0.052585,95049.0,95034.0,0.374868]
[1733850727352,0.052587,95045.0,95034.0,0.374868]
[1733850727552,0.413393,95035.0,95034.0,0.374868]
[1733850727864,0.42300238,95035.0,95034.0,0.374868]
[1733850728175,0.42300238,95035.0,95034.0,0.1877462]
[1733850728176,0.72300238,95035.0,95034.0,0.1877462]
[1733850728369,0.3608,95027.0,95007.0,0.00011504]
[1733850728662,0.052612,95001.0,94991.0,0.052617]
[1733850728965,0.09222399,95006.0,95004.0,0.01538507]
[1733850729461,0.09222399,95006.0,95005.0,0.00025648]
[1733850729665,0.10196045,95006.0,95005.0,0.00025648]
[1733850730376,0.09222399,95006.0,95005.0,0.00025648]
[1733850730561,0.10192756,95006.0,95005.0,0.00025648]
[1733850730765,0.3608,95025.0,95012.0,0.052606]
[1733850730955,0.3608,95025.0,95011.0,0.3608]
[1733850731153,0.3608,95030.0,95023.0,0.00012]
[1733850731357,0.001,95027.0,95023.0,0.00012]
[1733850732163,0.001,95027.0,95023.0,0.01494224]
[1733850732463,0.3608,95030.0,95023.0,0.01494224]
[1733850732671,0.00158065,95055.0,95029.0,0.3608]
[1733850732966,0.00011886,95059.0,95058.0,0.05258]
[1733850733171,6e-05,95081.0,95060.0,0.052579]
[1733850733363,6e-05,95081.0,95076.0,0.3608]
[1733850733562,6e-05,95081.0,95080.0,0.00012]
[1733850734162,6e-05,95081.0,95080.0,0.0002435]
[1733850734472,6e-05,95081.0,95080.0,0.01513398]
[1733850734762,0.36086,95081.0,95080.0,0.01513398]
[1733850735066,0.66386,95081.0,95080.0,5e-07]
[1733850735268,0.71498839,95081.0,95080.0,5e-07]
[1733850735473,0.3938,95095.0,95080.0,5e-07]
[1733850735474,9.555e-05,95099.0,95089.0,0.3608]
[1733850735678,0.40006613,95130.0,95089.0,0.3608]
[1733850735679,0.30800319,95158.0,95130.0,0.3608]
[1733850735875,0.30800319,95158.0,95139.0,0.3608]
[1733850736166,0.30738931,95163.0,95156.0,0.72172]
[1733850736564,7.637e-05,95184.0,95157.0,0.01587658]
[1733850736763,7.637e-05,95184.0,95162.0,0.00012]
[1733850736963,0.18216615,95189.0,95163.0,0.81723754]
[1733850737174,0.18216615,95189.0,95175.0,0.81104408]
[1733850737482,0.413315,95177.0,95176.0,5.96832777]
[1733850737971,0.413315,95177.0,95176.0,9.22182223]
[1733850737972,9.153e-05,95177.0,95176.0,9.22182223]
[1733850738174,9.153e-05,95177.0,95176.0,8.17935427]
[1733850738365,9.153e-05,95177.0,95176.0,8.23186927]
[1733850738568,0.18216615,95189.0,95180.0,0.00090847]
[1733850738862,0.1,95200.0,95188.0,0.3608]
[1733850739063,0.1,95200.0,95189.0,4.55364158]
[1733850739368,0.05384449,95210.0,95199.0,0.00012]
[1733850739570,9.647e-05,95209.0,95200.0,5.55389738]
[1733850739771,9.647e-05,95209.0,95201.0,5.53748182]
[1733850739965,9.647e-05,95209.0,95202.0,6.48620204]
[1733850740167,5.647e-05,95209.0,95203.0,6.74682127]
[1733850740478,5.647e-05,95209.0,95204.0,6.3190459]
[1733850740676,0.26896965,95214.0,95205.0,5.48517994]
[1733850740866,0.32146365,95214.0,95206.0,5.69349871]
[1733850741172,0.32142365,95214.0,95207.0,2.88389936]
[1733850741364,0.15708749,95214.0,95208.0,6.21469102]
[1733850741566,0.4039,95213.0,95209.0,5.39768995]
[1733850741764,0.05258013,95212.0,95210.0,4.26478825]
[1733850741975,8.513e-05,95212.0,95211.0,5.13720227]
[1733850742179,0.3608,95244.0,95211.0,5.49800227]
[1733850742380,0.052472,95255.0,95243.0,0.7216]
[1733850742670,0.052472,95255.0,95254.0,0.3608]
[1733850742873,0.052472,95255.0,95254.0,6.10634322]
[1733850743077,0.06238951,95255.0,95254.0,7.47220998]
[1733850743279,0.02590477,95255.0,95254.0,9.358353]
[1733850743872,0.00157678,95259.0,95254.0,9.358353]
[1733850744181,0.35404678,95259.0,95258.0,0.36092]
[1733850744475,0.35404678,95259.0,95258.0,8.12498473]
[1733850744665,0.71484678,95259.0,95258.0,8.12498473]
[1733850744871,0.71492724,95259.0,95258.0,8.00998973]
[1733850745073,0.73191396,95259.0,95258.0,6.38461227]
[1733850745277,0.74668493,95259.0,95258.0,1.64941853]
[1733850745476,0.052496,95211.0,95201.0,0.3608]
[1733850745772,0.01698672,95210.0,95208.0,3.51353419]
[1733850746078,0.01698672,95209.0,95195.0,2.52139274]
[1733850746373,0.01698672,95209.0,95200.0,1.46815111]
[1733850746374,0.47695476,95201.0,95200.0,1.46815111]
[1733850746565,0.47695476,95201.0,95200.0,3.54897214]
[1733850746566,0.19394148,95201.0,95200.0,3.54897214]
[1733850746768,0.59908465,95201.0,95200.0,2.43181643]
[1733850746977,0.052521,95165.0,95164.0,0.0084]
[1733850747273,0.052521,95165.0,95156.0,1.10120761]
[1733850747274,0.73088672,95165.0,95156.0,1.10120761]
[1733850747477,0.413326,95157.0,95156.0,1.10110761]
[1733850747675,0.413386,95157.0,95156.0,1.10110761]
[1733850747975,0.43037272,95157.0,95156.0,1.10110761]
[1733850748177,0.37796546,95157.0,95156.0,1.10100761]
[1733850748373,0.01716546,95157.0,95156.0,1.15353361]
[1733850748572,0.01716546,95157.0,95156.0,0.052526]
[1733850748879,0.00017874,95157.0,95156.0,0.052526]
[1733850749080,0.01684265,95157.0,95156.0,0.052526]
[1733850749280,0.00157823,95191.0,95156.0,0.6618]
[1733850749576,0.052501,95202.0,95190.0,0.00012]
[1733850749773,0.3608,95203.0,95190.0,0.00012]
[1733850749975,0.3608,95203.0,95201.0,0.00012]
[1733850750177,0.3608,95203.0,95190.0,0.052507]
[1733850750178,0.3608,95203.0,95202.0,0.00012]
[1733850750377,0.36092369,95203.0,95202.0,0.00012]
[1733850751081,0.3608,95209.0,95202.0,0.00012]
[1733850751082,0.02115782,95209.0,95202.0,0.00012]
[1733850751375,0.02115782,95209.0,95208.0,0.00012]
[1733850751578,0.38195782,95209.0,95208.0,0.00012]
[1733850752172,0.17224337,95209.0,95208.0,0.00012]
[1733850753083,0.02161367,95209.0,95208.0,0.36092]
[1733850753578,0.02161367,95209.0,95208.0,0.72272]
[1733850753579,0.02761367,95209.0,95208.0,0.72272]
[1733850753767,0.02761367,95209.0,95208.0,0.94132]
[1733850754177,0.02161367,95209.0,95208.0,0.94032]
[1733850754371,0.07511067,95209.0,95208.0,0.00852]
[1733850754773,0.02261367,95209.0,95208.0,0.632017]
[1733850754977,0.01581592,95229.0,95208.0,3.76016]
[1733850755170,0.01581592,95240.0,95228.0,0.3608]
[1733850755375,0.052481,95238.0,95228.0,0.36092]
[1733850755581,0.052481,95238.0,95228.0,0.3608]
[1733850755876,0.26896965,95240.0,95228.0,0.3608]
[1733850755877,0.06290925,95237.0,95228.0,0.3608]
[1733850756079,0.3608,95244.0,95233.0,0.24611273]
[1733850756278,0.01051142,95243.0,95235.0,0.24611273]
[1733850756487,0.052483,95235.0,95234.0,0.24612462]
[1733850756687,0.06290991,95235.0,95233.0,0.24612462]
[1733850756981,0.052486,95228.0,95225.0,0.24612462]
[1733850757284,0.37120471,95234.0,95220.0,0.3608]
[1733850757285,0.01581386,95231.0,95220.0,0.3608]
[1733850757479,0.05249,95221.0,95220.0,0.3608]
[1733850757782,6e-05,95226.0,95220.0,0.3608]
[1733850757980,0.052493,95217.0,95208.0,0.3692]
[1733850758184,6e-05,95221.0,95208.0,0.0084]
[1733850758392,0.052506,95192.0,95190.0,0.09331862]
[1733850758694,0.052506,95192.0,95182.0,0.30764091]
[1733850758695,0.26896965,95202.0,95188.0,0.3608]
[1733850758982,0.71520001,95210.0,95179.0,0.3608]
[1733850759194,0.052506,95194.0,95188.0,0.3608]
[1733850759375,0.01643266,95193.0,95192.0,0.63004]
[1733850759579,0.01582553,95216.0,95192.0,0.682546]
[1733850759886,0.01582553,95216.0,95190.0,0.3608]
[1733850759887,0.052499,95205.0,95198.0,0.3608]
[1733850760076,0.01634879,95204.0,95199.0,0.0084]
[1733850760276,0.01634879,95203.0,95199.0,0.0084]
[1733850760475,0.01634879,95202.0,95199.0,0.0084]
[1733850760673,0.01634879,95201.0,95199.0,0.63844]
[1733850760878,0.0737528,95205.0,95199.0,0.63844]
[1733850761079,0.01618454,95204.0,95199.0,0.63844]
[1733850761294,0.01618454,95203.0,95199.0,0.63844]
[1733850761781,0.01618454,95203.0,95199.0,0.0084]
[1733850761979,0.052496,95212.0,95203.0,0.0525]
[1733850762175,0.052496,95212.0,95211.0,0.3608]
[1733850762376,0.09007195,95212.0,95211.0,0.3608]
[1733850763094,0.01626963,95212.0,95211.0,0.99084]
[1733850763290,0.00140001,95229.0,95220.0,0.63004]
[1733850763488,0.02078952,95231.0,95228.0,0.413286]
[1733850763688,0.052484,95233.0,95228.0,0.413406]
[1733850763893,0.26896965,95240.0,95228.0,0.36092]
[1733850764190,1.552475,95249.0,95226.0,0.31103071]
[1733850764191,1.50140001,95249.0,95239.0,0.00012]
[1733850764384,0.05248,95240.0,95239.0,0.00012]
[1733850764697,8.133e-05,95248.0,95240.0,0.63004]
[1733850764986,8.133e-05,95248.0,95247.0,0.99084]
[1733850765187,0.35296,95274.0,95247.0,1.39347052]
[1733850765393,0.35296,95274.0,95251.0,0.63004]
[1733850765394,0.26896965,95260.0,95251.0,0.63004]
[1733850765583,0.02081683,95265.0,95253.0,0.3608]
[1733850765584,0.052472,95255.0,95253.0,0.3608]
[1733850766298,0.00010975,95254.0,95253.0,0.3608]
[1733850766601,0.3608,95295.0,95253.0,3.39084]
[1733850766804,0.052458,95281.0,95279.0,0.3608]
[1733850767283,0.052458,95281.0,95279.0,0.99084]
[1733850767483,0.052458,95281.0,95279.0,0.3608]
[1733850767690,0.052458,95279.0,95273.0,0.262461]
[1733850767895,0.052459,95278.0,95277.0,0.3608]
[1733850768190,0.0001162,95280.0,95277.0,0.413259]
[1733850768381,0.0001162,95280.0,95273.0,0.21]
[1733850768588,0.0001162,95280.0,95279.0,0.00012]
[1733850768987,0.0001162,95280.0,95279.0,0.36192]
[1733850769394,0.00988446,95280.0,95279.0,0.00112]
[1733850769587,0.06234246,95280.0,95279.0,0.00112]
[1733850769792,0.06234246,95280.0,95279.0,0.36192]
[1733850769986,0.06234246,95280.0,95279.0,0.00112]
[1733850770194,0.052467,95263.0,95258.0,0.3608]
[1733850770389,0.00976826,95262.0,95253.0,0.001]
[1733850770692,0.26896965,95268.0,95252.0,0.4303]
[1733850770693,0.052472,95254.0,95252.0,0.4303]
[1733850770909,0.00976826,95253.0,95252.0,0.4303]
[1733850771202,0.62988585,95280.0,95252.0,0.4303]
[1733850771490,0.62988585,95280.0,95252.0,2.8303]
[1733850771491,0.63888585,95280.0,95252.0,2.8303]
[1733850771697,0.0091162,95280.0,95268.0,0.3608]
[1733850771893,0.052459,95278.0,95273.0,0.052462]
[1733850772081,0.052458,95279.0,95277.0,0.3608]
[1733850772799,0.0001162,95280.0,95259.0,0.5708]
[1733850772985,0.052469,95260.0,95259.0,0.5708]
[1733850773188,0.052469,95260.0,95259.0,0.3608]
[1733850773392,0.052529,95260.0,95259.0,0.3608]
[1733850773587,0.052473,95252.0,95251.0,0.3608]
[1733850773786,0.052473,95252.0,95251.0,0.36919]
[1733850773992,0.052533,95252.0,95251.0,0.36919]
[1733850774399,0.052533,95252.0,95239.0,0.3066]
[1733850774400,0.36086,95252.0,95237.0,0.01539408]
[1733850774586,0.05248,95239.0,95238.0,1e-06]
[1733850774790,0.3608,95244.0,95215.0,0.3933]
[1733850774991,0.052493,95216.0,95215.0,0.3933]
[1733850775285,9.353e-05,95251.0,95215.0,3.1541]
[1733850775488,0.004,95252.0,95250.0,0.3608]
[1733850775694,0.56605615,95300.0,95250.0,0.3608]
[1733850775695,0.20525615,95300.0,95250.0,0.3608]
[1733850775895,0.20525615,95300.0,95270.0,0.26896965]
[1733850776208,0.20525615,95300.0,95251.0,0.81387514]
[1733850776209,0.15367019,95312.0,95310.0,0.052441]
[1733850776383,0.15367019,95312.0,95311.0,0.99084]
[1733850776586,0.15367019,95312.0,95311.0,0.9909]
[1733850776891,0.15379625,95312.0,95311.0,0.36086]
[1733850777500,0.15379625,95312.0,95311.0,3.3909]
[1733850778697,0.20623625,95312.0,95311.0,0.36086]
[1733850780002,0.15379625,95312.0,95311.0,3.443341]
[1733850780300,0.62176965,95350.0,95320.0,0.63004]
[1733850780301,0.4610577,95348.0,95320.0,0.63004]
[1733850780502,0.4624977,95348.0,95334.0,0.3608]
[1733850780689,0.02071029,95346.0,95334.0,0.9909]
[1733850780895,0.4624977,95348.0,95334.0,3.3909]
[1733850781099,0.052423,95343.0,95341.0,0.99084]
[1733850781293,0.18451977,95342.0,95341.0,0.36086]
[1733850781598,0.18451977,95342.0,95341.0,2.76086]
[1733850782005,0.18451977,95342.0,95341.0,2.813284]
[1733850782199,0.18451977,95342.0,95341.0,3.44324874]
[1733850782396,0.18451977,95342.0,95341.0,3.39082474]
[1733850782900,0.54531977,95342.0,95341.0,1e-06]
[1733850783402,1.69406291,95342.0,95341.0,1e-06]
[1733850783601,1.69406291,95342.0,95341.0,2.400001]
[1733850784195,2.05486291,95342.0,95341.0,2.399931]
[1733850784395,1.69406291,95342.0,95335.0,0.40377697]
[1733850784596,0.413227,95336.0,95335.0,0.02972271]
[1733850784793,0.42283014,95336.0,95335.0,2.42965371]
[1733850785000,0.00960314,95336.0,95335.0,2.42965371]
[1733850785199,6e-05,95336.0,95335.0,3.05969371]
[1733850785404,0.052419,95351.0,95335.0,3.05969371]
[1733850785405,1.5e-07,95373.0,95372.0,0.052407]
[1733850785611,0.12287581,95388.0,95378.0,0.23044057]
[1733850785902,0.12287581,95388.0,95385.0,0.23044057]
[1733850786105,0.12287581,95388.0,95387.0,0.23044057]
[1733850786305,0.12298414,95388.0,95387.0,3.21925773]
[1733850786511,0.12298414,95388.0,95387.0,2.98881716]
[1733850787005,0.48378414,95388.0,95386.0,0.44763464]
[1733850787213,0.48378414,95388.0,95376.0,0.43285813]
[1733850787503,0.052404,95377.0,95376.0,0.64573825]
[1733850787897,0.037404,95377.0,95376.0,0.64573825]
[1733850788322,0.00144,95383.0,95376.0,2.59844042]
[1733850788505,0.12298414,95388.0,95384.0,0.0524]
[1733850788814,0.12298414,95388.0,95387.0,0.64363957]
[1733850789309,0.12298414,95388.0,95387.0,2.00510117]
[1733850789803,0.12298414,95388.0,95387.0,2.36590117]
[1733850790696,0.12298414,95388.0,95387.0,2.0830616]
[1733850790895,0.12298414,95388.0,95387.0,2.31350217]
[1733850791103,0.12298414,95388.0,95387.0,2.36590117]
[1733850791805,1.62298414,95388.0,95387.0,2.31350217]
[1733850792105,0.052401,95383.0,95382.0,6e-05]
[1733850792315,0.12298414,95388.0,95383.0,0.052401]
[1733850792504,6e-05,95383.0,95382.0,1.7747236]
[1733850792804,1.50006,95383.0,95382.0,2.1355236]
[1733850793015,1.50006,95383.0,95382.0,1.7223216]
[1733850793200,1.50006,95383.0,95382.0,6e-05]
[1733850793404,1.50006,95383.0,95382.0,1.7223216]
[1733850793701,0.052407,95373.0,95372.0,0.00012069]
[1733850793901,0.413207,95373.0,95372.0,0.00012069]
[1733850794101,0.413267,95373.0,95372.0,0.00012069]
[1733850794297,0.413267,95373.0,95370.0,0.15354444]
[1733850794502,0.052412,95364.0,95363.0,0.25711437]
[1733850794705,0.052412,95364.0,95363.0,3.7e-07]
[1733850794912,0.413272,95364.0,95363.0,3.7e-07]
[1733850795713,0.413272,95364.0,95363.0,1.72226197]
[1733850795903,6e-05,95364.0,95363.0,2.00511454]
[1733850796109,0.36896965,95400.0,95363.0,2.36591454]
[1733850796299,0.36896965,95400.0,95387.0,0.3608]
[1733850796300,0.07340034,95389.0,95387.0,0.3608]
[1733850796504,0.07340034,95389.0,95387.0,0.36286]
[1733850796700,0.07340034,95389.0,95387.0,2.0851216]
[1733850797012,0.07340034,95389.0,95387.0,1.7243216]
[1733850797311,0.07340034,95389.0,95387.0,0.002]
[1733850797505,0.052401,95383.0,95382.0,1e-06]
[1733850797707,0.052408,95370.0,95369.0,0.052408]
[1733850797904,0.06194953,95370.0,95369.0,1.7222616]
[1733850798114,0.00960153,95370.0,95369.0,1.7222616]
[1733850798413,0.00960153,95370.0,95369.0,2.00511017]
[1733850799510,0.00960153,95370.0,95369.0,1.7222616]
[1733850799814,0.00960153,95370.0,95362.0,3.7e-07]
[1733850799815,0.052411,95364.0,95362.0,3.7e-07]
[1733850800014,0.052416,95355.0,95354.0,1.97956728]
[1733850800219,1.92275753,95355.0,95354.0,6.8e-07]
[1733850800405,1.92281753,95355.0,95354.0,6.8e-07]
[1733850801107,1.56201753,95355.0,95354.0,6.8e-07]
[1733850801306,1.92281753,95355.0,95354.0,6.8e-07]
[1733850801612,1.92281753,95355.0,95345.0,0.56348865]
[1733850801613,0.052421,95346.0,95345.0,0.25534365]
[1733850801806,0.42276253,95346.0,95345.0,6.5e-07]
[1733850802109,0.42282253,95346.0,95345.0,6.5e-07]
[1733850802308,0.42282253,95346.0,95339.0,1.67602616]
[1733850802309,0.052424,95340.0,95339.0,1.21784892]
[1733850802510,0.06196553,95340.0,95339.0,1.21784892]
[1733850802719,0.052426,95338.0,95337.0,0.53745561]
[1733850803019,0.35849154,95338.0,95336.0,0.6231231]
[1733850803209,0.052427,95336.0,95334.0,1.35466229]
[1733850803409,1.31653353,95335.0,95334.0,1.35466229]
[1733850803814,2.81653353,95335.0,95334.0,1.35466229]
[1733850804023,3.22574673,95335.0,95334.0,1.35466229]
[1733850804217,3.22580673,95335.0,95334.0,1.35466229]
[1733850804521,2.1275373,95335.0,95334.0,3.07692389]
[1733850805119,1.7278422,95335.0,95334.0,3.07792389]
[1733850805316,1.7278422,95335.0,95334.0,0.8936764]
[1733850806806,1.7278422,95335.0,95334.0,0.7719234]
[1733850807320,1.86841568,95335.0,95334.0,0.7719234]
[1733850807520,2.28733278,95335.0,95334.0,0.50966151]
[1733850807721,2.83946667,95335.0,95334.0,0.50966151]
[1733850808617,2.83946667,95335.0,95334.0,2.23192311]
[1733850808816,2.47866667,95335.0,95334.0,2.23192311]
[1733850809119,3.57305227,95335.0,95334.0,2.23192311]
[1733850809322,4.1250204,95335.0,95334.0,2.23192311]
[1733850809521,4.1250204,95335.0,95334.0,0.50966151]
[1733850809731,4.13464141,95335.0,95334.0,0.50966151]
[1733850810024,3.02107001,95335.0,95334.0,0.001]
[1733850810210,4.52107001,95335.0,95334.0,0.001]
[1733850810722,0.052428,95334.0,95330.0,0.00013402]
[1733850810919,0.3608,95331.0,95313.0,0.23044057]
[1733850811115,0.3608,95314.0,95313.0,0.052439]
[1733850811322,1.94742193,95314.0,95313.0,0.052439]
[1733850811514,1.94742193,95314.0,95313.0,0.28287957]
[1733850811711,1.94742193,95314.0,95313.0,0.23044057]
[1733850812021,2.30822193,95314.0,95300.0,0.23044057]
[1733850812229,0.052451,95293.0,95291.0,9.793e-05]
[1733850812413,1.89555297,95292.0,95291.0,9.793e-05]
[1733850813014,1.89561297,95292.0,95291.0,9.793e-05]
[1733850813216,1.89561297,95292.0,95257.0,0.38194033]
[1733850813217,0.052459,95278.0,95277.0,0.23044057]
[1733850813522,0.052459,95277.0,95275.0,0.23044057]
[1733850813842,1.41061198,95276.0,95275.0,0.23044057]
[1733850814226,0.76071198,95276.0,95275.0,1.95270217]
[1733850814414,0.09093542,95276.0,95275.0,2.31350217]
[1733850814743,0.052452,95290.0,95275.0,2.31350217]
[1733850814744,0.21646563,95277.0,95276.0,0.05246]
[1733850815023,0.30921807,95301.0,95300.0,0.052447]
[1733850815227,0.82525163,95312.0,95300.0,0.052447]
[1733850815228,0.23475826,95310.0,95308.0,0.052442]
[1733850815421,0.91705927,95313.0,95311.0,0.05244]
[1733850815628,0.91705927,95313.0,95309.0,0.36089846]
[1733850815629,1.20381054,95314.0,95309.0,0.36095846]
[1733850815835,0.84682391,95330.0,95324.0,0.052433]
[1733850816124,0.84682391,95330.0,95324.0,0.413293]
[1733850816332,0.05198348,95325.0,95324.0,2.17331069]
[1733850816525,0.05198348,95325.0,95324.0,2.92624906]
[1733850816720,0.05198348,95325.0,95324.0,3.58748198]
[1733850817017,0.05198348,95325.0,95324.0,2.39696882]
[1733850817229,0.05198348,95325.0,95324.0,2.35898602]
[1733850817419,0.05198348,95325.0,95324.0,1.59159745]
[1733850817626,0.05198348,95325.0,95324.0,0.93036453]
[1733850817925,0.05598348,95325.0,95324.0,0.56956453]
[1733850818123,0.05598348,95325.0,95324.0,1.29289437]
[1733850818321,0.05598348,95325.0,95324.0,1.87870376]
[1733850818533,4.8e-07,95325.0,95324.0,1.87870376]
[1733850818723,0.38620412,95329.0,95328.0,0.052431]
[1733850818920,0.38480411,95329.0,95328.0,2.65891797]
[1733850819121,0.38480411,95329.0,95328.0,2.95891797]
[1733850819328,1.45998485,95336.0,95328.0,2.95891797]
[1733850819329,0.29175304,95332.0,95330.0,0.05243]
[1733850819621,0.29175304,95332.0,95328.0,3.69544907]
[1733850819622,0.49326421,95335.0,95334.0,0.052428]
[1733850819832,1.35109206,95336.0,95334.0,3.43955707]
[1733850820081,0.99900707,95336.0,95335.0,3.03464907]
[1733850820226,0.00096001,95336.0,95335.0,3.03464907]
[1733850820527,0.00011799,95345.0,95344.0,0.052422]
[1733850820734,0.00011799,95345.0,95344.0,5.59672926]
[1733850821033,0.31472,95383.0,95359.0,0.052414]
[1733850821232,0.31472,95383.0,95382.0,0.3608]
[1733850821530,0.80980001,95383.0,95382.0,4.58850104]
[1733850821737,0.80980001,95383.0,95382.0,5.39741963]
[1733850821738,1.12452001,95383.0,95382.0,5.39741963]
[1733850822029,0.44282534,95383.0,95382.0,4.12585682]
[1733850822232,0.00010222,95383.0,95382.0,2.01302611]
[1733850822423,0.00010222,95383.0,95382.0,0.9155709]
[1733850822619,0.00010222,95383.0,95382.0,0.42338984]
[1733850822844,0.052405,95376.0,95374.0,0.56016427]
[1733850823023,0.052406,95373.0,95371.0,0.41657627]
[1733850823223,0.00010222,95383.0,95381.0,0.052402]
[1733850823431,0.00010222,95383.0,95382.0,0.3608]
[1733850823632,0.052389,95405.0,95392.0,0.052396]
[1733850823833,0.05239,95404.0,95392.0,0.413196]
[1733850824034,0.05239,95403.0,95392.0,0.413256]
[1733850824222,0.00157341,95421.0,95392.0,0.36086]
[1733850824431,0.052391,95402.0,95392.0,0.36086]
[1733850824727,8.352e-05,95394.0,95392.0,0.36086]
[1733850825523,0.05396873,95393.0,95392.0,6e-05]
[1733850826334,1.55396873,95393.0,95392.0,0.2486292]
[1733850826528,1.55396873,95393.0,95392.0,6e-05]
[1733850826725,0.00157373,95393.0,95392.0,6e-05]